bitfinex/quotes_SOLUSD_20220311
["timestamp","ask_amount","ask_price","bid_price","bid_amount"]
[1647004207858,5.997,83.399,83.331,23.9564]
[1647004208045,17.9978,83.38,83.331,23.9564]
[1647004208253,17.9978,83.38,83.311,24.5899]
[1647004208647,5.998,83.379,83.311,24.5899]
[1647004208845,7.30059886,83.378,83.311,24.5899]
[1647004209046,17.9994,83.36,83.311,24.5899]
[1647004209450,23.0654,83.376,83.311,24.5899]
[1647004210852,17.9971,83.37,83.311,24.5899]
[1647004211255,5.998,83.369,83.311,24.5899]
[1647004211751,5.998,83.375,83.311,24.5899]
[1647004212554,17.9984,83.36,83.311,24.5899]
[1647004213154,5.998,83.375,83.311,24.5899]
[1647004214756,17.9958,83.37,83.311,24.5899]
[1647004214956,5.998,83.369,83.311,24.5899]
[1647004215658,17.9978,83.36,83.311,24.5899]
[1647004220392,17.9978,83.36,83.305,5.998]
[1647004220587,18.0018,83.35,83.305,5.998]
[1647004220787,28.05930638,83.349,83.305,5.998]
[1647004222190,14.42,83.39,83.306,119.7]
[1647004222391,22.8742,83.376,83.306,142.441]
[1647004222998,22.8742,83.376,83.308,119.7]
[1647004223193,33.98079864,83.375,83.311,119.7]
[1647004224395,17.9956,83.37,83.311,119.7]
[1647004224794,17.9956,83.37,83.31,17.9966]
[1647004225397,17.9956,83.37,83.306,22.741]
[1647004225796,17.9988,83.36,83.306,22.741]
[1647004226596,6.0,83.359,83.305,5.998]
[1647004226996,18.0023,83.35,83.305,5.998]
[1647004227198,1.3791066,83.349,83.305,5.998]
[1647004228210,1.3791066,83.349,83.29,17.9996]
[1647004228405,18.0047,83.34,83.284,18.1469]
[1647004228704,6.001,83.339,83.247,17.9976]
[1647004228906,6.001,83.339,83.24,63.7052]
[1647004228907,47.02989186,83.339,83.24,63.7052]
[1647004229099,80.94490653,83.339,83.24,45.6961]
[1647004229299,50.68470653,83.338,83.24,93.85495283]
[1647004229505,18.0125,83.32,83.24,93.85495283]
[1647004229701,35.3486801,83.319,83.241,6.003]
[1647004229902,52.98963215,83.319,83.241,6.003]
[1647004230501,18.0109,83.31,83.241,6.003]
[1647004230706,17.64095205,83.318,83.241,6.003]
[1647004230903,29.3456801,83.319,83.241,5.503]
[1647004231102,29.3456801,83.319,83.242,11.94989476]
[1647004231501,18.0097,83.31,83.25,18.0097]
[1647004231701,29.3456801,83.319,83.25,18.0097]
[1647004232305,29.3456801,83.319,83.241,5.503]
[1647004232504,6.003,83.318,83.241,5.503]
[1647004233006,18.0095,83.31,83.241,5.503]
[1647004233212,125.703,83.309,83.241,5.503]
[1647004233405,9.04747957,83.309,83.241,5.503]
[1647004233606,3.04447957,83.308,83.241,5.503]
[1647004234006,3.04447957,83.308,83.242,48.92749136]
[1647004234206,18.0118,83.3,83.242,48.92749136]
[1647004234405,3.04447957,83.308,83.242,48.92749136]
[1647004235305,18.0117,83.3,83.242,48.92749136]
[1647004235906,18.0117,83.3,83.241,5.503]
[1647004236308,122.74447957,83.299,83.241,5.503]
[1647004236508,119.7,83.289,83.197,18.2112]
[1647004236911,27.23340471,83.288,83.198,72.84419504]
[1647004237111,27.23340471,83.288,83.199,119.7]
[1647004237312,3.04447957,83.287,83.201,119.7]
[1647004238215,18.0169,83.28,83.221,47.62455879]
[1647004238612,3.04447957,83.287,83.221,47.62455879]
[1647004238918,3.04447957,83.279,83.221,47.62455879]
[1647004239314,24.18892514,83.288,83.221,47.62455879]
[1647004239512,24.18892514,83.288,83.222,119.7]
[1647004239715,24.18892514,83.288,83.23,18.0143]
[1647004241422,24.18892514,83.288,83.231,119.7]
[1647004241613,23.6777,83.288,83.24,18.0116]
[1647004242648,23.6777,83.288,83.241,64.05892398]
[1647004243650,23.6777,83.288,83.25,18.0102]
[1647004243847,26.95441149,83.295,83.241,64.05892398]
[1647004245349,23.283,83.298,83.242,119.7]
[1647004245550,23.283,83.298,83.241,64.05892398]
[1647004245750,6.003,83.297,83.242,119.7]
[1647004246352,23.462868,83.296,83.242,119.7]
[1647004246551,6.003,83.295,83.242,119.7]
[1647004247153,6.003,83.295,83.25,18.0101]
[1647004247753,23.462868,83.296,83.25,18.0101]
[1647004248154,23.283,83.298,83.25,18.0101]
[1647004248956,6.003,83.307,83.251,119.7]
[1647004249156,28.06912517,83.329,83.251,119.7]
[1647004249157,28.06912517,83.329,83.27,18.0009]
[1647004249358,6.002,83.362,83.27,18.0009]
[1647004249558,6.002,83.362,83.271,144.3747]
[1647004250364,23.11803079,83.361,83.29,17.9989]
[1647004250558,23.11803079,83.361,83.292,119.7]
[1647004251559,23.11803079,83.361,83.3,17.9991]
[1647004251960,6.0,83.382,83.301,119.7]
[1647004252160,24.0531,83.381,83.301,119.7]
[1647004252365,24.0531,83.381,83.303,119.7]
[1647004252660,24.0531,83.381,83.32,17.987]
[1647004253060,28.27434141,83.38,83.321,54.54674955]
[1647004254160,28.27434141,83.38,83.33,17.9934]
[1647004254561,28.27434141,83.38,83.321,54.54674955]
[1647004255166,5.998,83.379,83.321,54.54674955]
[1647004256064,46.26844141,83.38,83.321,54.54674955]
[1647004257164,46.26844141,83.38,83.33,17.9933]
[1647004257466,17.9941,83.38,83.33,17.9933]
[1647004257665,24.0531,83.381,83.33,17.9933]
[1647004258566,25.67940929,83.38,83.321,54.54674955]
[1647004258771,43.67350929,83.38,83.321,54.54674955]
[1647004260568,43.67350929,83.38,83.33,17.994]
[1647004261789,25.67940929,83.38,83.33,17.994]
[1647004262391,23.426,83.383,83.331,119.7]
[1647004262592,23.426,83.383,83.34,17.991]
[1647004263590,17.9938,83.38,83.33,17.9932]
[1647004263995,17.9938,83.38,83.322,23.4101]
[1647004264191,28.06912517,83.379,83.322,23.4101]
[1647004264991,28.06912517,83.379,83.323,51.62038612]
[1647004265492,22.30291467,83.382,83.323,51.62038612]
[1647004266495,22.30291467,83.382,83.323,171.32038612]
[1647004267095,17.9948,83.38,83.33,17.9938]
[1647004268599,28.06912517,83.379,83.323,51.62038612]
[1647004268798,17.9957,83.37,83.323,51.62038612]
[1647004269008,7.55399057,83.369,83.322,23.4101]
[1647004272002,7.55399057,83.369,83.32,17.9954]
[1647004272203,7.55399057,83.369,83.3,59.9857]
[1647004272204,17.9977,83.36,83.31,17.9977]
[1647004272403,23.9048,83.368,83.301,24.1075]
[1647004273002,23.9048,83.368,83.312,60.07683342]
[1647004274209,23.9048,83.368,83.32,17.9962]
[1647004275710,17.9976,83.36,83.312,85.02183342]
[1647004278019,17.9976,83.36,83.27,20.42]
[1647004278216,18.0035,83.34,83.278,29.8426]
[1647004278616,18.0035,83.34,83.278,23.8426]
[1647004279023,22.30291467,83.339,83.279,58.8692844]
[1647004279221,18.0045,83.33,83.279,58.8692844]
[1647004280017,18.0045,83.33,83.28,6.0]
[1647004280418,24.6015,83.355,83.29,18.0012]
[1647004280621,23.3137,83.354,83.291,119.7]
[1647004281418,23.3137,83.354,83.3,17.9962]
[1647004281620,23.3137,83.354,83.301,58.99818048]
[1647004283121,23.3137,83.354,83.31,17.9977]
[1647004284822,0.98162171,83.353,83.31,17.9977]
[1647004287426,17.9996,83.35,83.301,58.99818048]
[1647004288025,28.06912517,83.349,83.292,24.4015]
[1647004288225,6.0,83.348,83.292,24.4015]
[1647004288425,18.0069,83.34,83.292,24.4015]
[1647004289031,18.0069,83.34,83.293,54.16395589]
[1647004289032,23.80541806,83.339,83.293,54.16395589]
[1647004289424,23.80541806,83.339,83.292,24.4015]
[1647004289628,23.80541806,83.339,83.272,24.5803]
[1647004289924,18.004,83.33,83.272,24.5803]
[1647004290526,18.004,83.33,83.273,57.05874257]
[1647004291330,6.002,83.329,83.273,57.05874257]
[1647004291526,18.0073,83.32,83.272,24.5803]
[1647004291728,18.0073,83.32,83.253,23.9033]
[1647004292129,6.003,83.319,83.253,23.9033]
[1647004292527,6.05148718,83.318,83.254,60.20169092]
[1647004292728,6.003,83.317,83.254,60.20169092]
[1647004293529,18.0094,83.31,83.254,60.20169092]
[1647004293731,18.0094,83.31,83.253,23.9033]
[1647004293930,6.003,83.309,83.253,23.9033]
[1647004294427,6.003,83.316,83.253,23.9033]
[1647004294828,6.003,83.316,83.254,48.06068188]
[1647004295030,24.6625,83.317,83.254,48.06068188]
[1647004295430,24.6625,83.317,83.255,119.7]
[1647004296231,24.6625,83.317,83.261,119.7]
[1647004296431,24.6625,83.317,83.254,48.06068188]
[1647004297238,24.6625,83.317,83.26,18.0081]
[1647004297834,28.4539011,83.321,83.261,119.7]
[1647004298034,29.203,83.338,83.261,119.7]
[1647004298640,23.2,83.338,83.261,119.7]
[1647004298837,23.2,83.338,83.271,119.7]
[1647004299036,23.2,83.338,83.271,53.80277799]
[1647004299237,23.2,83.338,83.272,119.7]
[1647004300135,33.60442532,83.331,83.272,119.7]
[1647004300340,33.60442532,83.331,83.281,119.7]
[1647004300541,33.60442532,83.331,83.271,77.98317799]
[1647004300739,33.60442532,83.331,83.272,119.7]
[1647004301139,6.8,83.331,83.272,119.7]
[1647004301341,6.8,83.331,83.29,18.0023]
[1647004302141,6.8,83.331,83.291,63.90174655]
[1647004302758,23.2,83.338,83.291,63.90174655]
[1647004303458,23.37612001,83.337,83.291,63.90174655]
[1647004303659,18.0043,83.33,83.271,24.1804]
[1647004303859,18.0043,83.33,83.272,6.0]
[1647004304159,18.0043,83.33,83.271,24.1804]
[1647004304463,46.07342517,83.33,83.271,24.1804]
[1647004304659,6.002,83.329,83.272,57.0988261]
[1647004305060,23.37612001,83.337,83.272,57.0988261]
[1647004305461,23.2,83.338,83.272,57.0988261]
[1647004305862,23.2,83.338,83.28,18.0041]
[1647004306061,23.2,83.338,83.272,57.0988261]
[1647004306560,3.94614,83.33,83.272,57.0988261]
[1647004307161,6.002,83.329,83.272,57.0988261]
[1647004308064,6.002,83.329,83.271,24.1804]
[1647004308863,18.0065,83.32,83.271,24.1804]
[1647004309065,2.25795701,83.319,83.272,64.92462267]
[1647004311266,2.25795701,83.319,83.271,24.1804]
[1647004311869,18.0081,83.31,83.26,18.0078]
[1647004312268,2.25795701,83.319,83.261,63.42334949]
[1647004312472,2.25795701,83.319,83.27,18.006]
[1647004313772,2.25795701,83.319,83.262,24.1804]
[1647004315574,18.0081,83.31,83.262,24.1804]
[1647004316573,2.25795701,83.319,83.262,24.1804]
[1647004317173,18.0076,83.32,83.262,24.1804]
[1647004317373,6.003,83.319,83.27,18.0061]
[1647004317979,18.0083,83.31,83.262,24.1804]
[1647004318176,22.25519727,83.309,83.262,24.1804]
[1647004320478,18.0068,83.32,83.262,24.1804]
[1647004320779,6.003,83.319,83.262,24.1804]
[1647004321480,21.03044228,83.318,83.262,24.1804]
[1647004321680,18.0084,83.31,83.262,24.1804]
[1647004322584,18.0084,83.31,83.263,63.58688517]
[1647004322783,18.0084,83.31,83.245,6.003]
[1647004322982,18.0118,83.3,83.244,29.2765]
[1647004323286,18.0118,83.3,83.244,23.2735]
[1647004323782,18.0118,83.3,83.245,58.62826681]
[1647004323986,6.003,83.299,83.245,58.62826681]
[1647004324382,18.0127,83.29,83.245,58.62826681]
[1647004325184,6.003,83.297,83.245,58.62826681]
[1647004327585,24.8928,83.298,83.245,58.62826681]
[1647004327985,21.10969562,83.297,83.245,58.62826681]
[1647004328386,6.003,83.296,83.245,58.62826681]
[1647004328589,18.0125,83.29,83.245,58.62826681]
[1647004330990,6.003,83.289,83.245,58.62826681]
[1647004331392,24.8928,83.298,83.246,119.7]
[1647004331589,24.8928,83.298,83.245,58.62826681]
[1647004331792,6.003,83.316,83.245,58.62826681]
[1647004331989,22.5043,83.315,83.246,24.5481]
[1647004332190,6.003,83.314,83.246,24.5481]
[1647004332390,18.0084,83.31,83.245,58.62826681]
[1647004332590,6.003,83.309,83.245,58.62826681]
[1647004332801,34.07212517,83.309,83.227,6.003]
[1647004332991,6.003,83.309,83.228,23.1929]
[1647004333192,31.11360474,83.308,83.228,23.1929]
[1647004333391,6.003,83.307,83.228,23.1929]
[1647004333592,37.11660474,83.307,83.228,23.1929]
[1647004333793,28.06912517,83.306,83.229,65.49645667]
[1647004333993,6.003,83.305,83.229,65.49645667]
[1647004334196,23.7313,83.304,83.23,137.7151]
[1647004334394,6.003,83.303,83.23,137.7151]
[1647004334595,2.77392883,83.302,83.23,137.7151]
[1647004334794,6.003,83.301,83.23,18.0151]
[1647004335398,6.003,83.301,83.231,119.7]
[1647004335597,6.003,83.303,83.25,18.0106]
[1647004335798,23.7313,83.304,83.25,18.0106]
[1647004336421,23.79574837,83.303,83.251,53.78918271]
[1647004336618,18.0107,83.3,83.251,53.78918271]
[1647004336819,6.003,83.299,83.242,23.7386]
[1647004337018,28.06912517,83.299,83.2,17.46447957]
[1647004337223,9.04947957,83.298,83.228,6.0]
[1647004337426,37.11860474,83.298,83.211,23.7386]
[1647004337722,18.0153,83.29,83.227,65.28936843]
[1647004337923,12.06615687,83.289,83.227,6.003]
[1647004338223,119.7,83.287,83.227,6.003]
[1647004338421,119.7,83.285,83.192,18.37203011]
[1647004338622,14.42,83.28,83.171,48.4346]
[1647004338820,125.706,83.279,83.186,50.73538271]
[1647004339222,119.7,83.277,83.171,48.4346]
[1647004339424,119.7,83.275,83.14,14.42]
[1647004339623,6.006,83.274,83.14,14.42]
[1647004339824,9.05047957,83.274,83.154,18.4393]
[1647004340023,119.7,83.259,83.154,18.4393]
[1647004340224,18.0291,83.25,83.17,18.028]
[1647004340429,126.207,83.249,83.171,62.89346671]
[1647004340823,145.66249209,83.249,83.171,62.89346671]
[1647004341022,120.2,83.247,83.171,62.89346671]
[1647004341225,8.3550378,83.245,83.171,62.89346671]
[1647004341425,120.2,83.239,83.171,62.89346671]
[1647004341625,18.0303,83.24,83.133,24.4521]
[1647004341626,120.2,83.237,83.133,24.4521]
[1647004341826,6.01,83.236,83.133,24.4521]
[1647004342023,120.2,83.235,83.133,21.9952235]
[1647004342224,14.42,83.22,83.133,21.9952235]
[1647004342525,18.0369,83.2,83.135,58.64410889]
[1647004342923,18.0369,83.2,83.136,6.0]
[1647004343126,8.3550378,83.201,83.136,6.0]
[1647004343523,8.3550378,83.201,83.14,18.0348]
[1647004343724,8.3550378,83.201,83.141,6.0]
[1647004343926,11.39951737,83.201,83.136,6.0]
[1647004344127,3.04447957,83.201,83.136,6.0]
[1647004344326,46.9778,83.217,83.136,6.0]
[1647004344327,3.04447957,83.214,83.136,6.0]
[1647004344526,3.04447957,83.208,83.14,18.0336]
[1647004344728,3.04447957,83.208,83.141,6.0]
[1647004344934,6.011,83.239,83.141,6.0]
[1647004345138,20.99709946,83.238,83.142,120.2]
[1647004345333,6.01,83.237,83.143,6.0]
[1647004345735,31.30579183,83.237,83.144,22.5056]
[1647004345930,31.30579183,83.237,83.145,6.0]
[1647004346135,18.0292,83.23,83.145,6.0]
[1647004346333,6.01,83.229,83.145,29.4478]
[1647004346538,120.2,83.228,83.145,29.4478]
[1647004346734,6.01,83.227,83.145,29.4478]
[1647004346932,6.01,83.228,83.145,29.4478]
[1647004347131,6.01,83.229,83.145,29.4478]
[1647004347532,18.0322,83.22,83.145,29.4478]
[1647004347737,8.25916312,83.218,83.145,6.0]
[1647004347933,6.01,83.217,83.145,6.0]
[1647004348140,126.21,83.217,83.145,6.0]
[1647004348339,126.21,83.217,83.144,22.5056]
[1647004348537,18.0332,83.21,83.144,22.5056]
[1647004348737,126.211,83.209,83.144,22.5056]
[1647004348940,129.25547957,83.209,83.144,22.5056]
[1647004349137,136.71547957,83.209,83.144,22.5056]
[1647004349337,3.04447957,83.208,83.144,22.5056]
[1647004349538,120.2,83.206,83.144,22.5056]
[1647004349738,120.2,83.204,83.144,22.5056]
[1647004349940,6.011,83.203,83.144,22.5056]
[1647004350139,6.011,83.204,83.144,22.5056]
[1647004350341,3.04447957,83.203,83.144,22.5056]
[1647004350537,6.011,83.202,83.144,22.5056]
[1647004351045,3.04447957,83.201,83.144,22.5056]
[1647004351241,18.04,83.19,83.144,22.5056]
[1647004351644,3.04447957,83.189,83.144,22.5056]
[1647004351839,6.011,83.188,83.144,22.5056]
[1647004352039,120.2,83.187,83.144,22.5056]
[1647004352240,14.27016312,83.186,83.144,22.5056]
[1647004352441,8.25916312,83.186,83.144,22.5056]
[1647004352942,27.4624585,83.217,83.144,22.5056]
[1647004353141,120.2,83.237,83.144,22.5056]
[1647004353342,120.2,83.227,83.144,22.5056]
[1647004353742,120.2,83.225,83.145,60.05449233]
[1647004353942,14.42,83.21,83.145,60.05449233]
[1647004354143,8.41752314,83.209,83.145,60.05449233]
[1647004354345,18.0355,83.2,83.145,60.05449233]
[1647004355446,18.04,83.19,83.145,60.05449233]
[1647004355643,20.83873944,83.188,83.145,60.05449233]
[1647004356245,20.83873944,83.188,83.122,24.6786]
[1647004356746,18.0397,83.18,83.122,24.6786]
[1647004357347,18.0397,83.18,83.123,59.24098395]
[1647004357546,9.05547957,83.187,83.123,59.24098395]
[1647004357945,3.04447957,83.186,83.123,59.24098395]
[1647004358146,6.011,83.185,83.123,59.24098395]
[1647004358345,6.011,83.185,83.095,22.6668]
[1647004358554,27.95367957,83.184,83.096,6.0]
[1647004358746,14.42,83.18,83.096,6.0]
[1647004358951,32.4592,83.18,83.096,6.0]
[1647004359147,6.014,83.179,83.069,27.1668]
[1647004359349,156.72093807,83.179,83.07,57.9235065]
[1647004359552,3.04447957,83.178,83.071,120.2]
[1647004359750,126.215,83.177,83.071,120.2]
[1647004359950,18.0443,83.16,83.071,120.2]
[1647004360156,62.21972314,83.159,83.071,120.2]
[1647004360750,62.21972314,83.159,83.071,26.66366289]
[1647004360953,18.0459,83.15,83.071,26.66366289]
[1647004361154,6.016,83.149,83.07,57.9235065]
[1647004361352,120.2,83.148,83.071,6.0]
[1647004361553,6.016,83.147,83.071,6.0]
[1647004361751,20.83873944,83.146,83.071,6.0]
[1647004361955,6.016,83.145,83.071,6.0]
[1647004362878,6.016,83.147,83.071,126.2]
[1647004363078,3.04447957,83.148,83.071,126.2]
[1647004363281,3.04447957,83.148,83.071,6.0]
[1647004363682,18.0478,83.14,83.07,57.9235065]
[1647004364079,3.04447957,83.139,83.07,57.9235065]
[1647004364277,18.0478,83.14,83.07,57.9235065]
[1647004364679,18.0478,83.14,83.07,75.9725065]
[1647004364881,18.0478,83.14,83.07,57.9235065]
[1647004365179,18.0547,83.12,83.07,57.9235065]
[1647004365380,20.45987439,83.12,83.07,57.9235065]
[1647004365782,18.0547,83.12,83.07,57.9235065]
[1647004366581,3.04447957,83.119,83.07,57.9235065]
[1647004367382,18.0501,83.13,83.07,57.9235065]
[1647004367383,6.017,83.129,83.07,57.9235065]
[1647004367582,9.06147957,83.129,83.07,57.9235065]
[1647004367782,26.92857897,83.128,83.07,57.9235065]
[1647004367983,6.016,83.127,83.07,57.9235065]
[1647004368183,9.06047957,83.127,83.07,57.9235065]
[1647004368585,3.04447957,83.126,83.07,57.9235065]
[1647004368787,18.0526,83.12,83.051,23.3228]
[1647004369083,9.06147957,83.119,83.051,23.3228]
[1647004369490,3.04447957,83.118,83.051,23.3228]
[1647004369887,3.04447957,83.118,83.052,48.52661236]
[1647004370085,6.017,83.117,83.052,48.52661236]
[1647004370485,3.04447957,83.116,83.052,48.52661236]
[1647004370685,18.0545,83.11,83.052,48.52661236]
[1647004371091,3.04447957,83.109,83.052,48.52661236]
[1647004371293,6.018,83.108,83.052,48.52661236]
[1647004371492,6.018,83.108,83.032,0.2]
[1647004371692,3.04447957,83.107,83.032,0.2]
[1647004371897,6.019,83.106,83.032,0.2]
[1647004372290,6.48,83.106,83.032,0.2]
[1647004372590,3.04447957,83.105,83.032,0.2]
[1647004372791,6.019,83.104,83.032,0.2]
[1647004373289,27.7713545,83.103,83.034,63.52258217]
[1647004373490,6.019,83.102,83.034,63.52258217]
[1647004373690,3.04447957,83.102,83.035,6.019]
[1647004373930,3.04447957,83.113,83.035,6.019]
[1647004374091,6.018,83.112,83.036,23.5641]
[1647004374498,6.018,83.131,83.037,6.018]
[1647004374695,6.018,83.131,83.04,18.0531]
[1647004374893,24.04590787,83.125,83.041,6.018]
[1647004375095,27.09038744,83.125,83.038,6.018]
[1647004375292,9.06247957,83.124,83.037,29.8071]
[1647004375693,18.0565,83.12,83.037,29.8071]
[1647004375898,3.04447957,83.123,83.037,29.8071]
[1647004376096,3.04447957,83.119,83.037,29.8071]
[1647004376795,3.04447957,83.119,83.038,120.2]
[1647004376996,3.04447957,83.119,83.04,120.2]
[1647004377194,3.04447957,83.119,83.041,132.218]
[1647004377394,3.04447957,83.119,83.06,18.0483]
[1647004377595,3.04447957,83.119,83.061,59.79311309]
[1647004377798,3.04447957,83.119,83.062,6.017]
[1647004378000,3.26037658,83.212,83.062,6.017]
[1647004378001,6.017,83.153,83.063,6.0]
[1647004378197,6.016,83.147,83.064,6.016]
[1647004378397,6.016,83.179,83.07,18.0467]
[1647004378598,6.261144,83.164,83.071,173.1424]
[1647004378796,6.261144,83.164,83.072,6.0]
[1647004378999,6.015,83.185,83.073,6.015]
[1647004379197,23.7683,83.184,83.074,6.0]
[1647004379498,23.7683,83.184,83.072,6.0]
[1647004379499,6.014,83.183,83.075,6.014]
[1647004379699,14.42,83.18,83.072,6.014]
[1647004379897,6.014,83.179,83.071,46.9274]
[1647004380298,48.73083731,83.179,83.071,46.9274]
[1647004380500,42.71683731,83.178,83.071,46.9274]
[1647004380697,6.015,83.177,83.071,46.9274]
[1647004380896,18.0466,83.17,83.08,18.0449]
[1647004381099,8.71379195,83.169,83.081,56.10004278]
[1647004381302,30.6743,83.168,83.082,22.8973]
[1647004381798,30.6743,83.168,83.083,120.2]
[1647004381996,24.6593,83.168,83.091,120.2]
[1647004382200,24.6593,83.168,83.083,120.2]
[1647004382398,24.36523734,83.167,83.082,22.8973]
[1647004383005,6.015,83.166,83.082,22.8973]
[1647004383200,6.015,83.166,83.091,120.2]
[1647004383397,24.6593,83.168,83.092,6.014]
[1647004383597,6.014,83.167,83.082,22.8973]
[1647004384004,126.214,83.167,83.061,6.015]
[1647004384202,120.2,83.159,83.053,6.015]
[1647004384400,28.862,83.158,83.053,126.215]
[1647004384600,46.99785365,83.158,83.053,126.215]
[1647004385000,21.40627346,83.156,83.055,183.43576785]
[1647004385198,21.40627346,83.156,83.057,120.2]
[1647004385401,3.04447957,83.155,83.061,120.2]
[1647004385603,3.04447957,83.155,83.063,120.2]
[1647004385800,3.04447957,83.155,83.064,6.016]
[1647004386000,6.016,83.154,83.064,6.016]
[1647004386201,23.8945,83.153,83.065,23.2384]
[1647004386402,6.016,83.152,83.066,6.016]
[1647004386603,9.06047957,83.152,83.066,6.016]
[1647004387002,3.04447957,83.151,83.066,6.016]
[1647004387205,24.0646,83.15,83.07,18.0472]
[1647004387400,24.0646,83.15,83.071,48.44263985]
[1647004387600,9.06047957,83.15,83.072,120.2]
[1647004388604,9.06047957,83.15,83.08,18.0453]
[1647004388802,23.8945,83.153,83.081,6.015]
[1647004389206,23.8945,83.153,83.072,6.015]
[1647004389402,23.8945,83.153,83.073,120.2]
[1647004389601,26.12467232,83.152,83.075,120.2]
[1647004389802,26.12467232,83.152,83.077,120.2]
[1647004390002,26.12467232,83.152,83.079,120.2]
[1647004390203,9.05947957,83.151,83.078,6.015]
[1647004390402,9.05947957,83.151,83.072,6.015]
[1647004391005,3.04447957,83.15,83.072,6.015]
[1647004391206,6.016,83.149,83.08,18.0457]
[1647004391709,9.06047957,83.149,83.08,18.0457]
[1647004393510,6.016,83.149,83.08,18.0457]
[1647004393713,6.015,83.152,83.08,18.0457]
[1647004393914,6.015,83.152,83.081,22.764]
[1647004394319,18.0473,83.15,83.081,22.764]
[1647004394514,6.015,83.149,83.081,22.764]
[1647004394714,18.13585365,83.149,83.081,22.764]
[1647004394914,9.05947957,83.148,83.071,48.44263985]
[1647004395115,75.01141214,83.148,83.071,48.44263985]
[1647004395313,18.0524,83.13,83.071,48.44263985]
[1647004395513,6.016,83.129,83.071,48.44263985]
[1647004395714,9.06047957,83.129,83.071,48.44263985]
[1647004395914,3.04447957,83.128,83.071,48.44263985]
[1647004396114,6.016,83.127,83.071,48.44263985]
[1647004396538,3.04447957,83.126,83.071,48.44263985]
[1647004396744,6.016,83.125,83.071,48.44263985]
[1647004396944,3.04447957,83.126,83.071,48.44263985]
[1647004397140,3.04447957,83.124,83.071,48.44263985]
[1647004398442,18.0512,83.13,83.071,48.44263985]
[1647004400145,3.04447957,83.129,83.071,48.44263985]
[1647004400348,18.0533,83.12,83.071,48.44263985]
[1647004400646,7.63170938,83.119,83.071,48.44263985]
[1647004400847,10.67618895,83.119,83.071,48.44263985]
[1647004401048,9.06147957,83.118,83.071,48.44263985]
[1647004401444,9.06147957,83.118,83.042,6.017]
[1647004401445,18.0551,83.11,83.042,6.017]
[1647004401645,32.4751,83.11,83.042,6.017]
[1647004401945,3.04447957,83.109,83.042,6.017]
[1647004402151,24.6631,83.108,83.042,6.017]
[1647004402346,24.6631,83.108,83.043,62.77857904]
[1647004402546,3.04447957,83.107,83.043,62.77857904]
[1647004402746,18.0573,83.1,83.043,62.77857904]
[1647004402947,18.0573,83.1,83.042,6.017]
[1647004403146,3.04447957,83.099,83.042,6.017]
[1647004403347,123.24447957,83.099,83.042,6.017]
[1647004403648,18.0624,83.09,83.013,47.2484]
[1647004403850,6.019,83.089,83.013,47.2484]
[1647004404045,8.74151171,83.088,83.014,60.61960946]
[1647004404247,6.019,83.087,83.014,60.61960946]
[1647004404447,23.1211,83.086,83.014,60.61960946]
[1647004404748,6.019,83.085,83.014,60.61960946]
[1647004405349,23.1211,83.086,83.014,60.61960946]
[1647004405948,23.1211,83.086,83.015,120.2]
[1647004406551,23.1211,83.086,83.014,60.61960946]
[1647004406752,3.04447957,83.085,83.014,60.61960946]
[1647004406950,9.06347957,83.085,83.014,60.61960946]
[1647004407352,23.96941253,83.084,83.014,60.61960946]
[1647004407951,18.0615,83.08,83.014,60.61960946]
[1647004408151,6.019,83.079,83.014,60.61960946]